fUSD/lending_fUSD_20250213
["ID","MTS","AMOUNT","RATE_DAILY","PERIOD"]
[352930566,1739440240745,-736.55,0.00015197,2]
[352930567,1739440240755,-500.0,0.00015197,2]
[352930568,1739440240768,-500.0,0.00015197,2]
[352930569,1739440240777,-500.0,0.00015197,2]
[352930570,1739440240788,-500.0,0.00015197,2]
[352930571,1739440240799,-500.0,0.00015197,2]
[352930572,1739440240809,-500.0,0.00015197,2]
[352930573,1739440240819,-500.0,0.00015197,2]
[352930574,1739440240828,-500.0,0.00015197,2]
[352930575,1739440240837,-500.0,0.00015197,2]
[352930576,1739440240846,-500.0,0.00015197,2]
[352930577,1739440240858,-500.0,0.00015197,2]
[352930578,1739440240869,-500.0,0.00015197,2]
[352930579,1739440240878,-502.54328955,0.00015197,2]
[352930580,1739440240888,-500.0,0.00015197,2]
[352930581,1739440240900,-500.0,0.00015197,2]
[352930582,1739440240910,-500.0,0.00015197,2]
[352930583,1739440240920,-500.0,0.00015197,2]
[352930584,1739440240931,-500.0,0.00015197,2]
[352930585,1739440240941,-503.75970785,0.00015197,2]
[352930586,1739440240950,-500.0,0.00015197,2]
[352930587,1739440240959,-500.0,0.00015197,2]
[352930588,1739440240969,-500.0,0.00015197,2]
[352930589,1739440240978,-785.31,0.00015197,2]
[352930590,1739440240987,-500.0,0.00015197,2]
[352930591,1739440240997,-500.0,0.00015197,2]
[352930592,1739440241008,-768.24,0.00015197,2]
[352930593,1739440241019,-500.0,0.00015197,2]
[352930594,1739440241028,-500.0,0.00015197,2]
[352930595,1739440241038,-1200.0,0.00015197,2]
[352930596,1739440241048,-510.38018142,0.00015197,2]
[352930597,1739440241058,-500.0,0.00015197,2]
[352930598,1739440241068,-500.0,0.00015197,2]
[352930599,1739440241077,-500.0,0.00015197,2]
[352930600,1739440241087,-500.0,0.00015197,2]
[352930601,1739440241097,-500.0,0.00015197,2]
[352930602,1739440241106,-500.0,0.00015197,2]
[352930603,1739440241116,-500.0,0.00015197,2]
[352930604,1739440241126,-508.0818064,0.00015197,2]
[352930605,1739440241135,-500.0,0.00015197,2]
[352930606,1739440241144,-500.0,0.00015197,2]
[352930607,1739440241154,-253.37305889,0.00015197,2]
[352930608,1739440241163,-1140.41,0.00015197,2]
[352930609,1739440241173,-512.34275861,0.00015197,2]
[352930610,1739440241182,-500.0,0.00015197,2]
[352930611,1739440241194,-500.0,0.00015197,2]
[352930612,1739440241205,-500.0,0.00015197,2]
[352930613,1739440241215,-500.0,0.00015197,2]
[352930614,1739440241225,-500.0,0.00015197,2]
[352930615,1739440241235,-810.37,0.00015197,2]
[352930616,1739440241245,-1057.57,0.00015197,2]
[352930617,1739440241256,-500.0,0.00015197,2]
[352930618,1739440241266,-500.0,0.00015197,2]
[352930619,1739440241276,-797.21,0.00015197,2]
[352930620,1739440241286,-604.82,0.00015197,2]
[352930621,1739440241295,-500.0,0.00015197,2]
[352930622,1739440241304,-500.0,0.00015197,2]
[352930623,1739440241314,-514.30115801,0.00015197,2]
[352930624,1739440241324,-500.0,0.00015197,2]
[352930625,1739440241334,-826.69,0.00015197,2]
[352930626,1739440241344,-1221.7,0.00015197,2]
[352930627,1739440241353,-500.0,0.00015197,2]
[352930628,1739440241363,-500.0,0.00015197,2]
[352930629,1739440241372,-500.0,0.00015197,2]
[352930630,1739440241382,-500.0,0.00015197,2]
[352930631,1739440241391,-516.84,0.00015197,2]
[352930632,1739440241400,-1111.07,0.00015197,2]
[352930633,1739440241411,-930.88,0.00015197,2]
[352930634,1739440241420,-959.64,0.00015197,2]
[352930635,1739440241430,-500.0,0.00015197,2]
[352930636,1739440241439,-1624.57,0.00015197,2]
[352930637,1739440241448,-500.0,0.00015197,2]
[352930638,1739440241458,-500.0,0.00015197,2]
[352930639,1739440241467,-500.0,0.00015197,2]
[352930640,1739440241476,-980.7,0.00015197,2]
[352930641,1739440241485,-500.0,0.00015197,2]
[352930642,1739440241495,-1287.91,0.00015197,2]
[352930643,1739440241504,-521.69,0.00015197,2]
[352930644,1739440241513,-2290.11,0.00015197,2]
[352930645,1739440241522,-723.5,0.00015197,2]
[352930646,1739440241531,-500.0,0.00015197,2]
[352930647,1739440241541,-848.38,0.00015197,2]
[352930648,1739440241550,-1406.16,0.00015197,2]
[352930649,1739440241559,-500.0,0.00015197,2]
[352930650,1739440241569,-500.0,0.00015197,2]
[352930651,1739440241578,-500.0,0.00015197,2]
[352930652,1739440241589,-500.0,0.00015197,2]
[352930653,1739440241598,-1100.85,0.00015197,2]
[352930654,1739440241608,-500.0,0.00015197,2]
[352930655,1739440241617,-500.0,0.00015197,2]
[352930656,1739440241627,-1074.9,0.00015197,2]
[352930657,1739440241636,-1415.75,0.00015197,2]
[352930658,1739440241645,-852.09,0.00015197,2]
[352930659,1739440241655,-500.0,0.00015197,2]
[352930660,1739440241664,-1119.55,0.00015197,2]
[352930661,1739440241674,-1264.64,0.00015197,2]
[352930662,1739440241684,-2226.72,0.00015197,2]
[352930663,1739440241694,-2040.55,0.00015197,2]
[352930664,1739440241703,-262.42707873,0.00015197,2]
[352930665,1739440241712,-500.0,0.00015197,2]
[352930666,1739440241722,-500.0,0.00015197,2]
[352930667,1739440241731,-960.87,0.00015197,2]
[352930668,1739440241740,-1591.25,0.00015197,2]
[352930669,1739440241749,-500.0,0.00015197,2]
[352930670,1739440241758,-794.52,0.00015197,2]
[352930671,1739440241767,-968.02,0.00015197,2]
[352930672,1739440241777,-500.0,0.00015197,2]
[352930673,1739440241787,-500.0,0.00015197,2]
[352930674,1739440241796,-575.38,0.00015197,2]
[352930675,1739440241805,-717.25,0.00015197,2]
[352930676,1739440241814,-615.7,0.00015197,2]
[352930677,1739440241824,-1101.33,0.00015197,2]
[352930678,1739440241833,-591.26,0.00015197,2]
[352930679,1739440241842,-1844.79,0.00015197,2]
[352930680,1739440241854,-500.0,0.00015197,2]
[352930681,1739440241863,-601.37,0.00015197,2]
[352930682,1739440241872,-509.96,0.00015197,2]
[352930683,1739440241882,-500.0,0.00015197,2]
[352930684,1739440241891,-1624.97,0.00015197,2]
[352930685,1739440241901,-579.3,0.00015197,2]
[352930686,1739440241911,-1235.79,0.00015197,2]
[352930687,1739440241920,-500.0,0.00015197,2]
[352930688,1739440241931,-952.58,0.00015197,2]
[352930689,1739440241941,-500.0,0.00015197,2]
[352930690,1739440241951,-500.0,0.00015197,2]
[352930691,1739440241961,-500.0,0.00015197,2]
[352930692,1739440241970,-2298.47,0.00015197,2]
[352930693,1739440241980,-527.97,0.00015197,2]
[352930694,1739440241989,-500.0,0.00015197,2]
[352930695,1739440241998,-158.76270871,0.00015197,2]
[352930696,1739440242008,-500.0,0.00015197,2]
[352930697,1739440242017,-500.0,0.00015197,2]
[352930698,1739440242027,-500.0,0.00015197,2]
[352930699,1739440242038,-1120.65,0.00015197,2]
[352930700,1739440242047,-800.84,0.00015197,2]
[352930701,1739440242056,-500.0,0.00015197,2]
[352930702,1739440242065,-877.44,0.00015197,2]
[352930703,1739440242075,-950.84,0.00015197,2]
[352930704,1739440242083,-500.0,0.00015197,2]
[352930705,1739440242093,-500.0,0.00015197,2]
[352930706,1739440242102,-554.95,0.00015197,2]
[352930707,1739440242302,-1346.94,0.00015197,2]
[352930708,1739440242312,-1138.6,0.00015197,2]
[352930709,1739440242322,-500.0,0.00015197,2]
[352930710,1739440242331,-500.0,0.00015197,2]
[352930711,1739440242343,-500.0,0.00015197,2]
[352930712,1739440242354,-2005.1,0.00015197,2]
[352930713,1739440242364,-1184.97,0.00015197,2]
[352930714,1739440242374,-732.97,0.00015197,2]
[352930715,1739440242385,-500.0,0.00015197,2]
[352930716,1739440242395,-500.0,0.00015197,2]
[352930717,1739440242405,-2018.84,0.00015197,2]
[352930718,1739440242415,-504.27343023,0.00015197,2]
[352930719,1739440242425,-1131.32,0.00015197,2]
[352930720,1739440242434,-500.0,0.00015197,2]
[352930721,1739440242443,-1443.91,0.00015197,2]
[352930722,1739440242454,-502.36675596,0.00015197,2]
[352930723,1739440242462,-500.0,0.00015197,2]
[352930724,1739440242472,-500.0,0.00015197,2]
[352930725,1739440242483,-500.0,0.00015197,2]
[352930726,1739440242492,-500.0,0.00015197,2]
[352930727,1739440242501,-690.5,0.00015197,2]
[352930728,1739440242510,-500.0,0.00015197,2]
[352930729,1739440242519,-1299.45,0.00015197,2]
[352930730,1739440242528,-559.12,0.00015197,2]
[352930731,1739440242537,-500.0,0.00015197,2]
[352930732,1739440242546,-105.45350849,0.00015197,2]
[352930733,1739440242596,-504.11242957,0.00015197,2]
[352930734,1739440242610,-637.99406194,0.00015197,2]
[352930735,1739440242619,-500.0,0.00015197,2]
[352930736,1739440242629,-206.36240347,0.00015197,2]
[352930737,1739440242643,-298.82298598,0.00015197,2]
[352930738,1739440242656,-276.05644621,0.00015197,2]
[352930739,1739440242672,-223.94355379,0.00015197,2]
[352930740,1739440242683,-500.0,0.00015197,2]
[352930741,1739440242692,-500.0,0.00015197,2]
[352930742,1739440242702,-72.68208121,0.00015197,2]
[352930743,1739440242714,-427.31791879,0.00015197,2]
[352930744,1739440242724,-500.0,0.00015197,2]
[352930745,1739440242734,-205.73208121,0.00015197,2]
[352930746,1739440242746,-2076.37791879,0.00015197,2]
[352930747,1739440242756,-500.0,0.00015197,2]
[352930748,1739440242766,-318.82060107,0.00015197,2]
[352930749,1739440242778,-1344.63390001,0.00015197,2]
[352930750,1739440242794,-128.24549892,0.00015197,2]
[352930751,1739440242804,-470.26903276,0.00015197,2]
[352930755,1739440242886,-29.73096724,0.00015197,2]
[352930757,1739440242897,-344.76288162,0.00015197,2]
[352930759,1739440242906,-500.8773055,0.00015197,2]
[352930761,1739440242916,-500.0,0.00015197,2]
[352930764,1739440242928,-500.0,0.00015197,2]
[352930765,1739440242937,-1530.48,0.00015197,2]
[352930768,1739440242947,-500.0,0.00015197,2]
[352930771,1739440242956,-628.37,0.00015197,2]
[352930773,1739440242965,-500.0,0.00015197,2]
[352930775,1739440242974,-594.88,0.00015197,2]
[352930777,1739440242983,-500.0,0.00015197,2]
[352930779,1739440242992,-589.79,0.00015197,2]
[352930780,1739440243002,-502.36622875,0.00015197,2]
[352930781,1739440243011,-500.0,0.00015197,2]
[352930782,1739440243020,-884.46,0.00015197,2]
[352930783,1739440243029,-321.21153572,0.00015197,2]
[352930784,1739440243072,-299.89956351,0.00015197,2]
[352930790,1739440243560,-934.75289023,0.00015196,2]
[352930791,1739440243576,-922.67710977,0.00015196,2]
[352930792,1739440243586,-1256.47890077,0.00015197,2]
[352930793,1739440243595,-500.0,0.00015197,2]
[352930794,1739440243605,-914.27,0.00015197,2]
[352930795,1739440243614,-1046.26,0.00015197,2]
[352930796,1739440243623,-2220.35,0.00015197,2]
[352930797,1739440243633,-500.0,0.00015197,2]
[352930798,1739440243642,-500.0,0.00015197,2]
[352930799,1739440243652,-545.51,0.00015197,2]
[352930800,1739440243662,-500.0,0.00015197,2]
[352930801,1739440243671,-1810.79,0.00015197,2]
[352930802,1739440243680,-2777.59,0.00015197,2]
[352930803,1739440243690,-500.0,0.00015197,2]
[352930804,1739440243699,-1099.59,0.00015197,2]
[352930805,1739440243709,-1515.17,0.00015197,2]
[352930806,1739440243718,-500.0,0.00015197,2]
[352930807,1739440243728,-794.69,0.00015197,2]
[352930808,1739440243738,-500.0,0.00015197,2]
[352930809,1739440243748,-2127.86,0.00015197,2]
[352930810,1739440243758,-229.18793541,0.00015197,2]
[352930811,1739440243767,-501.94115757,0.00015197,2]
[352930812,1739440243777,-3205.65,0.00015197,2]
[352930813,1739440243787,-500.0,0.00015197,2]
[352930814,1739440243798,-4399.19,0.00015197,2]
[352930815,1739440243807,-500.0,0.00015197,2]
[352930816,1739440243816,-500.0,0.00015197,2]
[352930817,1739440243826,-1268.38,0.00015197,2]
[352930818,1739440243835,-500.0,0.00015197,2]
[352930819,1739440243844,-1936.16,0.00015197,2]
[352930820,1739440243856,-500.0,0.00015197,2]
[352930821,1739440243866,-2550.2,0.00015197,2]
[352930822,1739440243875,-644.46,0.00015197,2]
[352930823,1739440243884,-1662.05,0.00015197,2]
[352930824,1739440243894,-860.4,0.00015197,2]
[352930825,1739440243903,-500.0,0.00015197,2]
[352930826,1739440243913,-5958.12,0.00015197,2]
[352930827,1739440243922,-759.68,0.00015197,2]
[352930828,1739440243933,-500.0,0.00015197,2]
[352930829,1739440243943,-5966.96,0.00015197,2]
[352930830,1739440243952,-500.0,0.00015197,2]
[352930831,1739440243960,-3463.49,0.00015197,2]
[352930832,1739440243970,-500.0,0.00015197,2]
[352930833,1739440243979,-500.0,0.00015197,2]
[352930834,1739440243988,-837.54,0.00015197,2]
[352930835,1739440243997,-500.0,0.00015197,2]
[352930836,1739440244006,-4168.57,0.00015197,2]
[352930837,1739440244015,-1477.41,0.00015197,2]
[352930838,1739440244024,-500.0,0.00015197,2]
[352930839,1739440244033,-500.0,0.00015197,2]
[352930840,1739440244042,-2802.86,0.00015197,2]
[352930841,1739440244052,-932.03,0.00015197,2]
[352930842,1739440244061,-574.53,0.00015197,2]
[352930843,1739440244070,-500.0,0.00015197,2]
[352930844,1739440244079,-3069.91,0.00015197,2]
[352930845,1739440244089,-500.0,0.00015197,2]
[352930846,1739440244098,-1582.79,0.00015197,2]
[352930847,1739440244107,-5726.71,0.00015197,2]
[352930848,1739440244116,-500.0,0.00015197,2]
[352930849,1739440244125,-1298.3,0.00015197,2]
[352930850,1739440244134,-591.22,0.00015197,2]
[352930851,1739440244144,-500.0,0.00015197,2]
[352930852,1739440244153,-665.67,0.00015197,2]
[352930853,1739440244163,-611.27,0.00015197,2]
[352930854,1739440244172,-2176.99,0.00015197,2]
[352930855,1739440244181,-2329.83,0.00015197,2]
[352930856,1739440244190,-943.08,0.00015197,2]
[352930857,1739440244199,-3707.08,0.00015197,2]
[352930858,1739440244208,-500.0,0.00015197,2]
[352930859,1739440244217,-2565.95,0.00015197,2]
[352930860,1739440244227,-2246.06,0.00015197,2]
[352930861,1739440244236,-500.0,0.00015197,2]
[352930862,1739440244245,-573.04985808,0.00015197,2]
[352930863,1739440244255,-2168.51,0.00015197,2]
[352930864,1739440244271,-500.0,0.00015197,2]
[352930865,1739440244289,-500.0,0.00015197,2]
[352930866,1739440244305,-2655.44,0.00015197,2]
[352930867,1739440244316,-735.76,0.00015197,2]
[352930868,1739440244326,-500.0,0.00015197,2]
[352930869,1739440244335,-500.0,0.00015197,2]
[352930870,1739440244345,-500.0,0.00015197,2]
[352930871,1739440244354,-2172.73649205,0.00015197,2]
[352930872,1739440244382,-1587.42350795,0.00015197,2]
[352930873,1739440244392,-4642.57649205,0.00015197,2]
[352930874,1739440244403,-1673.35350795,0.00015197,2]
[352930875,1739440244414,-590.97832669,0.00015197,2]
[352930876,1739440244425,-518.61167331,0.00015197,2]
[352930877,1739440244435,-160.40032719,0.00015197,2]
[352930878,1739440244447,-339.59967281,0.00015197,2]
[352930879,1739440244457,-408.45635389,0.00015197,2]
[352930880,1739440244469,-91.54364611,0.00015197,2]
[352930881,1739440244478,-534.43835389,0.00015197,2]
[352930882,1739440244489,-589.0474902,0.00015197,2]
[352930891,1739440246052,-374.55,0.00015196,2]
[352930892,1739440246064,-211.27,0.00015196,2]
[352930893,1739440246075,-626.85,0.00015196,2]
[352930896,1739440247118,-206.02,0.00015196,2]
[352930897,1739440247128,-93.58415591,0.00015197,2]
[352930898,1739440247137,-500.0,0.00015197,2]
[352930899,1739440247146,-909.54,0.00015197,2]
[352930900,1739440247156,-500.68209603,0.00015197,2]
[352930901,1739440247167,-2553.46,0.00015197,2]
[352930902,1739440247177,-500.0,0.00015197,2]
[352930903,1739440247187,-568.09835497,0.00015197,2]
[352930904,1739440247196,-1398.51,0.00015197,2]
[352930905,1739440247206,-1921.88,0.00015197,2]
[352930906,1739440247215,-500.0,0.00015198,2]
[352930907,1739440247226,-500.0,0.00015198,2]
[352930908,1739440247237,-500.0,0.00015198,2]
[352930909,1739440247246,-500.0,0.00015198,2]
[352930910,1739440247256,-500.0,0.00015198,2]
[352930911,1739440247266,-500.0,0.00015198,2]
[352930912,1739440247274,-500.0,0.00015198,2]
[352930913,1739440247283,-500.0,0.00015198,2]
[352930914,1739440247292,-602.6,0.00015198,2]
[352930915,1739440247301,-500.0,0.00015198,2]
[352930916,1739440247311,-500.0,0.00015198,2]
[352930917,1739440247320,-500.0,0.00015198,2]
[352930918,1739440247330,-500.0,0.00015198,2]
[352930919,1739440247340,-824.43,0.00015198,2]
[352930920,1739440247350,-1115.02,0.00015198,2]
[352930921,1739440247359,-500.0,0.00015198,2]
[352930922,1739440247369,-500.0,0.00015198,2]
[352930923,1739440247379,-774.87,0.00015198,2]
[352930924,1739440247389,-500.0,0.00015198,2]
[352930925,1739440247399,-1291.92,0.00015198,2]
[352930926,1739440247408,-953.98,0.00015198,2]
[352930927,1739440247421,-1198.46,0.00015198,2]
[352930928,1739440247431,-500.0,0.00015198,2]
[352930929,1739440247441,-705.89,0.00015198,2]
[352930930,1739440247451,-852.17,0.00015198,2]
[352930931,1739440247462,-500.0,0.00015198,2]
[352930932,1739440247472,-500.0,0.00015198,2]
[352930933,1739440247483,-1646.59,0.00015198,2]
[352930934,1739440247493,-675.61,0.00015198,2]
[352930935,1739440247502,-772.9,0.00015198,2]
[352930936,1739440247513,-1147.47,0.00015198,2]
[352930937,1739440247523,-1445.54,0.00015198,2]
[352930938,1739440247532,-533.01,0.00015198,2]
[352930939,1739440247543,-500.0,0.00015198,2]
[352930940,1739440247553,-500.0,0.00015198,2]
[352930941,1739440247563,-1636.54,0.00015198,2]
[352930942,1739440247572,-319.50317279,0.00015198,2]
[352930943,1739440247582,-1929.99,0.00015198,2]
[352930944,1739440247591,-500.0,0.00015198,2]
[352930945,1739440247601,-500.0,0.00015198,2]
[352930946,1739440247612,-500.0,0.00015198,2]
[352930947,1739440247621,-609.69,0.00015198,2]
[352930948,1739440247631,-1755.44,0.00015198,2]
[352930949,1739440247640,-500.0,0.00015198,2]
[352930950,1739440247650,-1480.23,0.00015198,2]
[352930951,1739440247662,-500.0,0.00015198,2]
[352930952,1739440247672,-1514.34,0.00015198,2]
[352930953,1739440247682,-230.08169151,0.00015198,2]
[352930954,1739440247692,-1194.96,0.00015198,2]
[352930955,1739440247702,-1675.62,0.00015198,2]
[352930956,1739440247712,-500.0,0.00015198,2]
[352930957,1739440247722,-500.0,0.00015198,2]
[352930958,1739440247733,-1673.83,0.00015198,2]
[352930959,1739440247743,-505.32338928,0.00015198,2]
[352930960,1739440247754,-861.36,0.00015198,2]
[352930961,1739440247765,-1149.54,0.00015198,2]
[352930962,1739440247775,-500.0,0.00015198,2]
[352930963,1739440247786,-500.0,0.00015198,2]
[352930964,1739440247796,-1513.78,0.00015198,2]
[352930965,1739440247806,-2468.76,0.00015198,2]
[352930966,1739440247816,-299.15724615,0.00015198,2]
[352930967,1739440247826,-1214.0,0.00015198,2]
[352930968,1739440247836,-500.0,0.00015198,2]
[352930969,1739440247847,-500.0,0.00015198,2]
[352930970,1739440247861,-955.44,0.00015198,2]
[352930971,1739440247870,-392.04457854,0.00015198,2]
[352930972,1739440247879,-500.0,0.00015198,2]
[352930973,1739440247888,-1242.28,0.00015198,2]
[352930974,1739440247898,-500.0,0.00015198,2]
[352930975,1739440247908,-509.81585414,0.00015198,2]
[352930976,1739440247919,-500.0,0.00015198,2]
[352930977,1739440247929,-500.0,0.00015198,2]
[352930978,1739440247941,-644.29,0.00015198,2]
[352930979,1739440247952,-1097.54,0.00015198,2]
[352930980,1739440247962,-1172.47,0.00015198,2]
[352930981,1739440247971,-586.62,0.00015198,2]
[352930982,1739440247981,-1089.28,0.00015198,2]
[352930983,1739440247990,-1145.57,0.00015198,2]
[352930984,1739440247999,-500.0,0.00015198,2]
[352930985,1739440248009,-506.26928483,0.00015198,2]
[352930986,1739440248018,-1512.56,0.00015198,2]
[352930987,1739440248027,-503.20894019,0.00015198,2]
[352930988,1739440248037,-500.0,0.00015198,2]
[352930989,1739440248047,-500.0,0.00015198,2]
[352930990,1739440248057,-500.0,0.00015198,2]
[352930991,1739440248067,-1112.92,0.00015198,2]
[352930992,1739440248078,-500.0,0.00015198,2]
[352930993,1739440248088,-2154.27,0.00015198,2]
[352930994,1739440248098,-1299.0,0.00015198,2]
[352930995,1739440248108,-500.0,0.00015198,2]
[352930996,1739440248118,-1060.87,0.00015198,2]
[352930997,1739440248129,-1734.7,0.00015198,2]
[352930998,1739440248139,-500.0,0.00015198,2]
[352930999,1739440248150,-1867.25,0.00015198,2]
[352931000,1739440248160,-1973.44,0.00015198,2]
[352931001,1739440248170,-1406.05,0.00015198,2]
[352931002,1739440248180,-500.0,0.00015198,2]
[352931003,1739440248189,-1500.83,0.00015198,2]
[352931004,1739440248199,-500.0,0.00015198,2]
[352931005,1739440248209,-768.87,0.00015198,2]
[352931006,1739440248218,-1660.74,0.00015198,2]
[352931007,1739440248228,-500.0,0.00015198,2]
[352931008,1739440248239,-685.32,0.00015198,2]
[352931009,1739440248248,-207.88821115,0.00015198,2]
[352931010,1739440248259,-500.0,0.00015198,2]
[352931011,1739440248269,-1177.52,0.00015198,2]
[352931012,1739440248445,-452.78128819,0.00015198,2]
[352931013,1739440248456,-1358.13,0.00015198,2]
[352931014,1739440248466,-505.42637789,0.00015198,2]
[352931015,1739440248477,-1375.86,0.00015198,2]
[352931016,1739440248486,-2664.33,0.00015198,2]
[352931017,1739440248497,-500.0,0.00015198,2]
[352931018,1739440248507,-500.0,0.00015198,2]
[352931019,1739440248517,-784.29,0.00015198,2]
[352931020,1739440248527,-1323.98,0.00015198,2]
[352931021,1739440248537,-500.0,0.00015198,2]
[352931022,1739440248549,-500.0,0.00015198,2]
[352931023,1739440248559,-7642.189024,0.00015198,2]
[352931024,1739440248570,-500.0,0.00015198,2]
[352931025,1739440248580,-500.0,0.00015198,2]
[352931026,1739440248590,-3026.95,0.00015198,2]
[352931027,1739440248600,-500.0,0.00015198,2]
[352931028,1739440248611,-1169.18,0.00015198,2]
[352931029,1739440248621,-500.0,0.00015198,2]
[352931030,1739440248632,-500.0,0.00015198,2]
[352931031,1739440248642,-7863.669063,0.00015198,2]
[352931032,1739440248652,-500.0,0.00015198,2]
[352931033,1739440248663,-2636.98,0.00015198,2]
[352931034,1739440248673,-500.0,0.00015198,2]
[352931035,1739440248683,-2216.88,0.00015198,2]
[352931036,1739440248693,-501.86459995,0.00015198,2]
[352931037,1739440248702,-160.450786,0.00015198,2]
[352931038,1739440248712,-866.58,0.00015198,2]
[352931039,1739440248722,-1066.6,0.00015198,2]
[352931040,1739440248732,-2902.94,0.00015198,2]
[352931041,1739440248743,-576.54,0.00015198,2]
[352931042,1739440248759,-541.25,0.00015198,2]
[352931043,1739440248769,-2620.05,0.00015198,2]
[352931044,1739440248779,-1047.48,0.00015198,2]
[352931045,1739440248788,-2862.77,0.00015198,2]
[352931046,1739440248798,-500.0,0.00015198,2]
[352931047,1739440248808,-1343.95,0.00015198,2]
[352931048,1739440248817,-4433.95,0.00015198,2]
[352931049,1739440248827,-1483.65,0.00015198,2]
[352931050,1739440248837,-943.23,0.00015198,2]
[352931051,1739440248846,-10731.75,0.00015198,2]
[352931052,1739440248860,-514.19002559,0.00015198,2]
[352931053,1739440248870,-500.0,0.00015198,2]
[352931054,1739440248881,-500.0,0.00015198,2]
[352931055,1739440248890,-2508.31,0.00015198,2]
[352931056,1739440248901,-1450.5,0.00015198,2]
[352931057,1739440248911,-707.36,0.00015198,2]
[352931058,1739440248922,-1556.16,0.00015198,2]
[352931059,1739440248932,-2457.33,0.00015198,2]
[352931060,1739440248942,-500.0,0.00015198,2]
[352931061,1739440248953,-2137.33,0.00015198,2]
[352931062,1739440248963,-676.63,0.00015198,2]
[352931063,1739440248973,-500.0,0.00015198,2]
[352931064,1739440248982,-2032.33,0.00015198,2]
[352931065,1739440248991,-500.0,0.00015198,2]
[352931066,1739440249001,-1518.84,0.00015198,2]
[352931067,1739440249012,-589.06,0.00015198,2]
[352931068,1739440249021,-500.0,0.00015198,2]
[352931069,1739440249031,-1231.54,0.00015198,2]
[352931070,1739440249042,-1201.6,0.00015198,2]
[352931071,1739440249052,-603.43,0.00015198,2]
[352931072,1739440249061,-1705.01,0.00015198,2]
[352931073,1739440249071,-1170.75,0.00015198,2]
[352931074,1739440249080,-500.0,0.00015198,2]
[352931075,1739440249090,-3108.38,0.00015198,2]
[352931076,1739440249099,-500.0,0.00015198,2]
[352931077,1739440249108,-1117.53,0.00015198,2]
[352931078,1739440249118,-503.78486544,0.00015198,2]
[352931079,1739440249127,-500.0,0.00015198,2]
[352931080,1739440249137,-3914.94,0.00015198,2]
[352931081,1739440249147,-500.0,0.00015198,2]
[352931082,1739440249156,-1193.4,0.00015198,2]
[352931083,1739440249167,-500.0,0.00015198,2]
[352931084,1739440249177,-2518.61,0.00015198,2]
[352931085,1739440249187,-2208.62,0.00015198,2]
[352931086,1739440249197,-500.0,0.00015198,2]
[352931087,1739440249208,-500.0,0.00015198,2]
[352931088,1739440249218,-3100.48,0.00015198,2]
[352931089,1739440249228,-500.0,0.00015198,2]
[352931090,1739440249238,-1884.71,0.00015198,2]
[352931091,1739440249249,-500.0,0.00015198,2]
[352931092,1739440249259,-705.31,0.00015198,2]
[352931093,1739440249269,-500.0,0.00015198,2]
[352931094,1739440249279,-500.0,0.00015198,2]
[352931095,1739440249288,-3079.14,0.00015198,2]
[352931096,1739440249299,-509.31,0.00015198,2]